bitfinex/quotes_SOLUSD_20220302
["timestamp","ask_amount","ask_price","bid_price","bid_amount"]
[1646196356857,0.73968853,104.49,104.48,14.3549]
[1646196358658,0.73968853,104.49,104.48,15.42202726]
[1646196361360,3.827,104.57,104.48,15.42202726]
[1646196361562,23.0846,104.57,104.48,15.42202726]
[1646196362259,69.08228604,104.57,104.48,26.96202726]
[1646196363059,23.0846,104.57,104.48,26.96202726]
[1646196363260,23.0846,104.57,104.48,28.84280388]
[1646196363559,23.0846,104.57,104.49,0.12228892]
[1646196363761,23.0846,104.57,104.51,14.3515]
[1646196364163,78.92027664,104.57,104.51,14.3515]
[1646196364562,174.32027664,104.57,104.51,14.3515]
[1646196364975,78.92027664,104.57,104.51,14.3515]
[1646196365363,95.4,104.56,104.51,14.3515]
[1646196365564,143.88803036,104.55,104.49,40.0592]
[1646196365763,143.88803036,104.55,104.49,14.3538]
[1646196366163,201.21803036,104.55,104.49,14.3538]
[1646196366365,201.21803036,104.55,104.46,47.8509]
[1646196367365,201.21803036,104.55,104.45,48.2581995]
[1646196367577,201.21803036,104.55,104.45,3.827]
[1646196367770,152.73,104.53,104.44,8.827]
[1646196367967,152.73,104.53,104.44,5.0]
[1646196367968,152.73,104.51,104.44,5.0]
[1646196368168,152.73,104.49,104.44,5.0]
[1646196368369,152.73,104.47,104.44,5.0]
[1646196368565,95.4,104.45,104.39,14.367]
[1646196368765,48.12823409,104.44,104.39,14.367]
[1646196369168,143.52823409,104.44,104.36,5.0]
[1646196370370,48.12823409,104.44,104.36,5.0]
[1646196370570,119.2123,104.46,104.37,14.3701]
[1646196370770,119.2123,104.46,104.36,5.0]
[1646196370969,22.7411,104.49,104.37,112.81279315]
[1646196371169,22.7411,104.49,104.39,95.4]
[1646196371370,22.7411,104.49,104.39,11.54]
[1646196371672,22.7411,104.49,104.41,5.0]
[1646196372073,22.7411,104.49,104.43,14.3618]
[1646196372273,26.5701,104.49,104.43,14.3618]
[1646196372876,22.7411,104.49,104.43,14.3618]
[1646196373272,22.7411,104.49,104.43,16.91084003]
[1646196373874,3.829,104.52,104.43,16.91084003]
[1646196374075,52.3841,104.54,104.43,55.08131184]
[1646196374274,43.97029706,104.53,104.43,55.08131184]
[1646196374474,3.827,104.52,104.43,55.08131184]
[1646196374675,47.79729706,104.53,104.43,155.48131184]
[1646196375079,48.5571,104.54,104.44,19.72808673]
[1646196375277,3.827,104.59,104.45,95.4]
[1646196375479,147.2002,104.6,104.49,14.3527]
[1646196375878,147.2002,104.6,104.49,25.8927]
[1646196376077,210.04577844,104.59,104.5,2.54904003]
[1646196376276,3.826,104.58,104.5,2.54904003]
[1646196376477,57.67049422,104.57,104.49,14.3527]
[1646196376677,153.07049422,104.57,104.49,14.3527]
[1646196378277,57.67049422,104.57,104.5,2.54904003]
[1646196378480,27.4779,104.58,104.51,14.3511]
[1646196378678,23.9595,104.6,104.51,28.24937309]
[1646196378879,23.9595,104.6,104.52,2.54904003]
[1646196379077,28.2491,104.61,104.52,2.54904003]
[1646196379279,3.825,104.62,104.53,11.54]
[1646196379580,51.85078345,104.62,104.53,11.54]
[1646196379777,51.85078345,104.62,104.54,2.54904003]
[1646196379981,51.85078345,104.62,104.55,11.54]
[1646196380381,51.85078345,104.62,104.56,2.54904003]
[1646196382483,147.25078345,104.62,104.56,2.54904003]
[1646196384083,147.25078345,104.62,104.56,16.89404003]
[1646196384283,51.85078345,104.62,104.56,16.89404003]
[1646196384885,99.223,104.64,104.56,16.89404003]
[1646196385086,3.823,104.64,104.57,2.54904003]
[1646196385286,136.90482104,104.67,104.57,2.54904003]
[1646196385287,4.47132104,104.67,104.57,14.08904003]
[1646196385486,4.47132104,104.67,104.6,14.3379]
[1646196385689,0.64832104,104.67,104.6,25.8779]
[1646196385886,0.64832104,104.67,104.61,2.54904003]
[1646196386086,0.64832104,104.67,104.62,11.54]
[1646196386489,0.64832104,104.67,104.64,14.3323]
[1646196386687,0.64832104,104.67,104.64,25.8723]
[1646196386887,0.64832104,104.67,104.61,47.7757]
[1646196387087,0.64832104,104.67,104.62,11.54]
[1646196387986,0.64832104,104.67,104.62,25.8758]
[1646196388789,0.64832104,104.67,104.62,28.42484003]
[1646196389189,0.64832104,104.67,104.62,25.8758]
[1646196389990,0.64832104,104.67,104.63,2.54904003]
[1646196390289,0.64832104,104.67,104.64,25.8712]
[1646196390491,0.64832104,104.67,104.65,0.37785494]
[1646196390889,3.822,104.75,104.66,2.54904003]
[1646196390890,52.1946,104.75,104.66,2.54904003]
[1646196391091,3.819,104.74,104.67,11.54]
[1646196391293,23.6171,104.76,104.67,11.54]
[1646196391590,3.819,104.78,104.68,2.54904003]
[1646196391890,58.59572178,104.77,104.69,11.54]
[1646196392189,58.59572178,104.77,104.7,2.54904003]
[1646196392489,58.59572178,104.77,104.71,14.323]
[1646196392692,58.59572178,104.77,104.71,25.863]
[1646196392890,58.59572178,104.77,104.71,28.41204003]
[1646196395196,58.59572178,104.77,104.71,16.87204003]
[1646196395797,58.59572178,104.77,104.71,14.323]
[1646196396297,211.32572178,104.77,104.67,11.54]
[1646196396499,0.22765784,104.76,104.66,62.34364003]
[1646196396796,0.22765784,104.76,104.66,59.7946]
[1646196396996,51.27831195,104.75,104.66,107.5528]
[1646196397200,51.27831195,104.75,104.67,3.819]
[1646196397501,51.27831195,104.75,104.68,11.54]
[1646196397701,51.27831195,104.75,104.7,14.3251]
[1646196402517,108.60831195,104.75,104.7,14.3251]
[1646196402717,108.60831195,104.75,104.7,2.54904003]
[1646196402718,51.27831195,104.75,104.7,2.54904003]
[1646196402917,51.27831195,104.75,104.68,14.3284]
[1646196404320,23.0326,104.78,104.68,14.3284]
[1646196404521,23.0326,104.78,104.68,25.8684]
[1646196404721,23.0326,104.78,104.68,28.26231759]
[1646196405321,54.39301099,104.77,104.68,28.26231759]
[1646196405521,58.21201099,104.77,104.68,28.26231759]
[1646196405725,153.61201099,104.77,104.68,28.26231759]
[1646196405920,153.61201099,104.77,104.68,25.8684]
[1646196406923,210.94201099,104.77,104.68,14.3284]
[1646196407823,153.61201099,104.77,104.68,14.3284]
[1646196408025,149.79301099,104.77,104.68,14.3284]
[1646196408228,207.12301099,104.77,104.68,14.3284]
[1646196408626,210.94201099,104.77,104.68,14.3284]
[1646196409229,115.54201099,104.77,104.68,14.3284]
[1646196409428,111.72301099,104.77,104.68,14.3284]
[1646196409827,54.39301099,104.77,104.68,14.3284]
[1646196410026,54.39301099,104.77,104.68,25.8684]
[1646196410429,149.79301099,104.77,104.68,25.8684]
[1646196410927,207.12301099,104.77,104.68,14.3284]
[1646196411130,210.94201099,104.77,104.68,14.3284]
[1646196411529,3.819,104.76,104.66,14.3306]
[1646196411731,152.73,104.74,104.66,14.3306]
[1646196411929,95.4,104.72,104.66,14.3306]
[1646196412131,52.42290548,104.71,104.66,14.3306]
[1646196412734,52.42290548,104.71,104.64,37.7734]
[1646196413231,52.42290548,104.71,104.65,11.54]
[1646196414031,24.9666,104.75,104.65,11.54]
[1646196414232,24.9666,104.75,104.66,14.3302]
[1646196414632,24.9666,104.75,104.67,2.54904003]
[1646196415034,42.87212817,104.74,104.65,47.7644]
[1646196415234,138.27212817,104.74,104.66,14.3304]
[1646196415435,195.60212817,104.74,104.66,14.3304]
[1646196415635,195.60212817,104.74,104.64,23.4401]
[1646196415836,207.14212817,104.74,104.64,23.4401]
[1646196416136,152.73,104.71,104.6,11.54]
[1646196416340,95.4,104.69,104.6,11.54]
[1646196416533,60.6438,104.71,104.6,11.54]
[1646196416534,200.36262213,104.68,104.6,11.54]
[1646196416734,200.36262213,104.68,104.58,51.20134003]
[1646196416735,200.36262213,104.68,104.58,62.74134003]
[1646196416940,200.36262213,104.68,104.58,51.20134003]
[1646196417538,47.63262213,104.68,104.58,51.20134003]
[1646196417738,47.63262213,104.68,104.58,182.80782158]
[1646196417940,47.63262213,104.68,104.6,14.3391]
[1646196418138,47.63262213,104.68,104.6,25.8791]
[1646196418341,47.63262213,104.68,104.6,30.46260851]
[1646196418737,143.03262213,104.68,104.6,30.46260851]
[1646196418941,200.36262213,104.68,104.6,16.88814003]
[1646196419938,47.63262213,104.68,104.6,37.73136676]
[1646196420340,47.63262213,104.68,104.6,40.20496821]
[1646196420538,47.63262213,104.68,104.63,14.3347]
[1646196421740,47.63262213,104.68,104.63,16.88374003]
[1646196421943,24.7945,104.7,104.63,16.88374003]
[1646196422340,120.1945,104.7,104.63,14.3347]
[1646196422942,47.20902722,104.69,104.63,14.3347]
[1646196428248,47.20902722,104.69,104.61,28.42584003]
[1646196428849,95.4,104.68,104.6,26.9857]
[1646196429046,49.82562327,104.67,104.6,23.1647]
[1646196429246,145.22562327,104.67,104.6,23.1647]
[1646196429448,49.82562327,104.67,104.6,23.1647]
[1646196429847,202.55562327,104.67,104.59,2.54904003]
[1646196430049,202.55562327,104.67,104.59,16.88854003]
[1646196430646,49.82562327,104.67,104.59,16.88854003]
[1646196431452,27.933,104.68,104.59,126.30443962]
[1646196431651,3.822,104.7,104.59,171.80920375]
[1646196431849,22.9295,104.71,104.6,0.13562288]
[1646196432052,22.9295,104.71,104.63,14.3325]
[1646196432249,22.9295,104.71,104.63,25.8725]
[1646196432549,49.34708273,104.7,104.63,28.42154003]
[1646196434349,22.9295,104.71,104.63,28.42154003]
[1646196434556,22.9295,104.71,104.63,30.30369605]
[1646196434749,22.9295,104.71,104.63,125.70369605]
[1646196434951,22.9295,104.71,104.63,71.98646018]
[1646196435150,22.9295,104.71,104.66,14.3294]
[1646196435449,22.9295,104.71,104.66,25.8694]
[1646196435673,80.61014101,104.71,104.66,25.8694]
[1646196436651,22.9295,104.71,104.66,25.8694]
[1646196437154,3.821,104.75,104.66,126.16867264]
[1646196437352,3.819,104.76,104.66,126.16867264]
[1646196437555,43.67392979,104.75,104.66,154.21437264]
[1646196437751,45.9852,104.77,104.66,195.89713677]
[1646196438157,45.9852,104.77,104.68,97.36356545]
[1646196438352,45.9852,104.77,104.7,14.3237]
[1646196438651,45.9852,104.77,104.7,25.8637]
[1646196438851,52.73540642,104.76,104.7,28.41274003]
[1646196439554,205.46540642,104.76,104.68,14.3273]
[1646196439755,205.46540642,104.76,104.68,25.8673]
[1646196439962,205.46540642,104.76,104.66,24.2267]
[1646196440160,118.3934,104.75,104.66,35.7667]
[1646196440358,56.77342725,104.74,104.66,35.7667]
[1646196441165,56.77342725,104.74,104.66,50.0969]
[1646196443384,56.77342725,104.74,104.66,52.44437051]
[1646196443984,56.77342725,104.74,104.66,147.84437051]
[1646196444185,56.77342725,104.74,104.66,150.39341054]
[1646196444687,22.9934,104.75,104.66,150.39341054]
[1646196444888,22.9934,104.75,104.69,14.3252]
[1646196445086,22.9934,104.75,104.69,25.8652]
[1646196445486,78.33100473,104.75,104.69,25.8652]
[1646196449986,173.73100473,104.75,104.67,18.1468]
[1646196450189,173.73100473,104.75,104.67,25.8678]
[1646196450788,173.73100473,104.75,104.67,14.3278]
[1646196451992,231.06100473,104.75,104.67,14.3278]
[1646196452190,234.88000473,104.75,104.66,24.2267]
[1646196452590,231.06100473,104.75,104.66,24.2267]
[1646196453392,231.06100473,104.75,104.65,42.0261]
[1646196453594,0.15712676,104.74,104.65,42.0261]
[1646196453792,3.819,104.73,104.65,3.819]
[1646196453993,152.73,104.71,104.65,3.819]
[1646196454193,140.79594364,104.7,104.65,3.819]
[1646196454894,45.39594364,104.7,104.65,3.819]
[1646196456295,140.79594364,104.7,104.65,3.819]
[1646196456695,45.39594364,104.7,104.65,3.819]
[1646196457295,140.79594364,104.7,104.65,3.819]
[1646196457500,45.39594364,104.7,104.62,14.3353]
[1646196460898,140.79594364,104.7,104.62,14.3353]
[1646196461698,45.39594364,104.7,104.62,14.3353]
[1646196463499,45.39594364,104.7,104.63,11.54]
[1646196463700,45.39594364,104.7,104.65,14.3313]
[1646196464998,48.7966,104.72,104.65,19.16311413]
[1646196465399,48.7966,104.72,104.65,30.70311413]
[1646196465800,191.221,104.75,104.65,30.70311413]
[1646196466002,76.80872739,104.74,104.65,55.09411413]
[1646196466402,53.61132739,104.74,104.65,185.12922687]
[1646196466802,24.8101,104.76,104.65,185.12922687]
[1646196467002,3.819,104.78,104.65,348.85570857]
[1646196467204,3.41477839,104.81,104.67,97.56462864]
[1646196467403,3.41477839,104.81,104.71,14.3208]
[1646196467603,2.0921478,104.81,104.71,25.8608]
[1646196467903,152.96396469,104.8,104.72,2.54904003]
[1646196468704,57.56396469,104.8,104.72,2.54904003]
[1646196469105,57.56396469,104.8,104.72,16.87114003]
[1646196470307,61.38196469,104.8,104.72,16.87114003]
[1646196470508,214.11196469,104.8,104.72,2.54904003]
[1646196470712,214.11196469,104.8,104.7,28.41314003]
[1646196470907,238.78256469,104.8,104.7,28.41314003]
[1646196471107,238.78256469,104.8,104.7,14.08904003]
[1646196471312,290.78269737,104.8,104.67,11.54]
[1646196471508,152.73,104.78,104.66,2.54904003]
[1646196471709,152.73,104.76,104.66,16.87864003]
[1646196471908,140.09330039,104.75,104.66,16.87864003]
[1646196472912,211.75440039,104.75,104.66,16.87864003]
[1646196473119,215.57340039,104.75,104.64,2.54904003]
[1646196473315,215.57340039,104.75,104.63,48.0221]
[1646196473911,227.11340039,104.75,104.63,48.0221]
[1646196474512,227.11340039,104.75,104.62,14.08904003]
[1646196474720,0.34800562,104.74,104.6,2.54904003]
[1646196474912,156.551,104.73,104.59,11.54]
[1646196475115,95.4,104.68,104.58,11.54]
[1646196475311,52.14770301,104.68,104.59,2.54904003]
[1646196475514,52.14770301,104.68,104.59,14.08904003]
[1646196475916,52.14770301,104.68,104.59,28.42714003]
[1646196476112,52.14770301,104.68,104.59,30.41247932]
[1646196477413,113.5593,104.71,104.59,125.81247932]
[1646196477819,18.1593,104.71,104.59,125.81247932]
[1646196478017,3.822,104.71,104.59,125.81247932]
[1646196478316,128.0351,104.72,104.59,150.33896102]
[1646196478519,54.95975131,104.71,104.59,150.33896102]
[1646196478716,54.95975131,104.71,104.59,169.86335073]
[1646196479116,54.95975131,104.71,104.59,164.86335073]
[1646196479821,54.95975131,104.71,104.59,169.86335073]
[1646196480019,128.0351,104.72,104.59,169.86335073]
[1646196480223,237.7705,104.72,104.59,54.93686903]
[1646196480520,47.8123,104.69,104.57,18.96915289]
[1646196480725,47.8123,104.69,104.53,14.1364]
[1646196480726,152.93694309,104.68,104.53,14.1364]
[1646196480922,3.823,104.67,104.53,25.6764]
[1646196481123,170.00377303,104.66,104.53,28.06454191]
[1646196481520,173.82677303,104.66,104.53,28.06454191]
[1646196481719,170.00377303,104.66,104.53,28.06454191]
[1646196481920,74.60377303,104.66,104.53,46.6369006]
[1646196482120,74.39682994,104.66,104.54,14.3443]
[1646196482322,74.39682994,104.66,104.54,135.83775539]
[1646196482522,74.39682994,104.66,104.54,154.41011408]
[1646196482721,4.2983512,104.59,104.54,172.11962523]
[1646196482920,1.333668,104.59,104.55,110.765]
[1646196483123,24.4117,104.68,104.57,97.82931241]
[1646196483324,24.4117,104.68,104.58,11.54]
[1646196483528,3.822,104.67,104.58,11.54]
[1646196483727,147.91554267,104.66,104.55,35.18286646]
[1646196483926,52.51554267,104.66,104.55,37.49026068]
[1646196484127,3.823,104.65,104.56,14.3418]
[1646196484326,111.56011558,104.64,104.55,30.95026068]
[1646196484548,111.56011558,104.64,104.55,28.9754]
[1646196484750,152.73,104.63,104.55,5.0]
[1646196484949,152.73,104.61,104.51,3.823]
[1646196485150,51.82793069,104.6,104.5,14.1674]
[1646196485356,51.82793069,104.6,104.49,96.0886905]
[1646196485552,109.15793069,104.6,104.49,11.54]
[1646196485851,95.4,104.57,104.48,3.826]
[1646196486052,57.33,104.59,104.47,36.86518395]
[1646196486651,95.4,104.58,104.47,36.86518395]
[1646196486850,72.696,104.6,104.47,36.86518395]
[1646196487152,129.64165264,104.59,104.5,14.352]
[1646196487758,95.4,104.58,104.5,14.352]
[1646196487960,54.66742836,104.57,104.5,14.352]
[1646196488155,150.06742836,104.57,104.5,14.352]
[1646196488353,54.66742836,104.57,104.5,14.352]
[1646196488554,111.99742836,104.57,104.48,14.354]
[1646196489757,115.82342836,104.57,104.48,14.354]
[1646196490755,136.37302836,104.57,104.48,14.354]
[1646196490955,231.77302836,104.57,104.48,14.354]
[1646196491360,231.77302836,104.57,104.46,14.3567]
[1646196491558,231.77302836,104.57,104.46,11.9962788]
[1646196492055,136.37302836,104.57,104.46,11.9962788]
[1646196492255,119.05662836,104.57,104.46,11.9962788]
[1646196492457,100.87502836,104.57,104.48,14.3542]
[1646196493056,158.20502836,104.57,104.48,14.3542]
[1646196493862,10.9045,104.53,104.48,14.3542]
[1646196494258,57.10085669,104.52,104.48,14.3542]
[1646196494460,10.9045,104.53,104.48,14.3542]
[1646196496563,10.9045,104.53,104.48,25.8942]
[1646196496763,10.9045,104.53,104.49,0.13840337]
[1646196496963,10.9045,104.53,104.5,14.3509]
[1646196497162,10.9045,104.53,104.51,0.8986322]
[1646196497763,10.9045,104.53,104.48,3.827]
[1646196497968,10.9045,104.53,104.46,5.0]
[1646196498166,10.9045,104.53,104.46,14.3573]
[1646196499666,57.43205423,104.53,104.46,14.3573]
[1646196499868,152.83205423,104.53,104.46,14.3573]
[1646196500067,10.9045,104.53,104.46,14.3573]
[1646196500667,10.9045,104.53,104.46,18.1843]
[1646196500875,10.9045,104.53,104.46,20.39908179]
[1646196501069,10.9045,104.53,104.46,129.88812182]
[1646196501267,10.9045,104.53,104.46,34.48812182]
[1646196502266,10.9045,104.53,104.47,97.51660931]
[1646196502469,10.9045,104.53,104.48,31.8974762]
[1646196502673,10.9045,104.53,104.48,34.44651623]
[1646196502872,10.9045,104.53,104.49,2.54904003]
[1646196503267,10.9045,104.53,104.49,14.08904003]
[1646196503468,10.9045,104.53,104.5,3.827]
[1646196503669,10.9045,104.53,104.51,3.03219997]
[1646196506072,10.9045,104.53,104.51,17.38379997]
[1646196507775,10.9045,104.53,104.51,19.82147125]
[1646196507975,10.9045,104.53,104.51,19.93284]
[1646196509983,47.4093,104.6,104.51,19.93284]
[1646196510181,47.4093,104.6,104.51,22.14132576]
[1646196510781,50.49779399,104.59,104.51,22.14132576]
[1646196511591,211.45879399,104.59,104.49,32.26984003]
[1646196511784,211.45879399,104.59,104.49,20.72984003]
[1646196511988,119.88479399,104.59,104.49,20.72984003]
[1646196513091,62.55479399,104.59,104.49,20.72984003]
[1646196513289,62.55479399,104.59,104.49,22.94628269]
[1646196513489,58.72879399,104.59,104.49,34.48628269]
[1646196514091,58.72879399,104.59,104.49,129.96891828]
[1646196514290,8.231,104.59,104.49,129.96891828]
[1646196514689,8.231,104.59,104.49,34.56891828]
[1646196515091,8.231,104.59,104.49,144.24701828]
[1646196515293,60.47937923,104.59,104.49,48.84701828]
[1646196515490,60.47937923,104.59,104.49,72.88531828]
[1646196516290,60.47937923,104.59,104.49,168.28531828]
[1646196516892,8.231,104.59,104.49,168.28531828]
[1646196517694,8.231,104.59,104.5,0.21890352]
[1646196517897,8.231,104.59,104.52,97.5789851]
[1646196518095,8.231,104.59,104.53,11.54]
[1646196518311,8.231,104.59,104.53,14.08904003]
[1646196518712,8.231,104.59,104.54,2.54904003]
[1646196519013,8.231,104.59,104.54,14.08904003]
[1646196519413,8.231,104.59,104.55,2.54904003]
[1646196519613,8.231,104.59,104.56,14.3425]
[1646196519810,8.231,104.59,104.57,0.55607224]
[1646196521013,8.231,104.59,104.57,14.89847224]
[1646196523215,8.231,104.59,104.57,0.55607224]
[1646196523415,60.97258328,104.61,104.55,14.3451]
[1646196523818,1.338465,104.62,104.55,14.3451]
[1646196524416,1.338465,104.62,104.56,2.54904003]
[1646196524617,1.338465,104.62,104.57,14.3425]
[1646196528719,1.338465,104.62,104.57,109.7425]
[1646196528926,1.338465,104.62,104.57,123.55034528]
[1646196529320,1.338465,104.62,104.57,166.5748166]
[1646196529520,1.338465,104.62,104.6,97.57309441]
[1646196529720,1.338465,104.62,104.61,11.54]
[1646196529921,1.338465,104.62,104.61,15.1634414]
[1646196530321,1.338465,104.62,104.61,12.61440137]
[1646196530519,1.338465,104.62,104.61,1.07440137]
[1646196531419,1.338465,104.62,104.61,15.40900137]
[1646196531621,8.334,104.64,104.61,15.40900137]
[1646196534022,5.161465,104.7,104.61,15.40900137]
[1646196534425,5.161465,104.7,104.61,26.94900137]
[1646196534621,5.161465,104.7,104.61,21.94900137]
[1646196534822,56.489457,104.7,104.61,21.94900137]
[1646196535025,5.161465,104.7,104.62,2.54904003]
[1646196535223,1.338465,104.7,104.64,109.73]
[1646196535422,1.338465,104.7,104.64,121.27]
[1646196535623,1.338465,104.7,104.64,123.81904003]
[1646196537325,1.338465,104.7,104.64,125.99441091]
[1646196537725,1.338465,104.7,104.64,140.31361091]
[1646196537927,1.338465,104.7,104.64,162.77254909]
[1646196538826,1.338465,104.7,104.64,138.13824003]
[1646196539427,1.338465,104.7,104.64,42.73824003]
[1646196540029,1.338465,104.7,104.64,40.1892]
[1646196540225,51.64301178,104.69,104.64,40.1892]
[1646196541729,51.64301178,104.69,104.64,11.54]
[1646196542531,51.64301178,104.69,104.62,14.3318]
[1646196542729,59.72701178,104.69,104.57,109.4829]
[1646196542935,0.1777739,104.68,104.59,5.0]
[1646196543732,0.1777739,104.68,104.56,103.235]
[1646196543930,53.15613737,104.67,104.56,114.775]
[1646196544129,0.1777739,104.66,104.56,114.775]
[1646196544329,47.9702984,104.65,104.56,114.775]
[1646196545131,47.9702984,104.65,104.56,129.1149]
[1646196545529,47.9702984,104.65,104.56,131.66394003]
[1646196546230,47.9702984,104.65,104.56,36.26394003]
[1646196546630,47.9702984,104.65,104.56,21.92404003]
[1646196547231,53.6872984,104.65,104.56,11.54]
[1646196547533,57.5102984,104.65,104.56,11.54]
[1646196547734,152.9102984,104.65,104.54,68.18523818]
[1646196547932,210.2402984,104.65,104.54,11.54]
[1646196548132,0.16704147,104.64,104.54,11.54]
[1646196548330,60.01041678,104.62,104.54,11.54]
[1646196548531,67.41341678,104.62,104.54,11.54]
[1646196550335,60.01041678,104.62,104.54,11.54]
[1646196551934,60.01041678,104.62,104.5,74.0271]
[1646196551935,176.48331678,104.62,104.5,74.0271]
[1646196552138,56.79411937,104.6,104.5,11.54]
[1646196552736,152.19411937,104.6,104.5,11.54]
[1646196552937,152.19411937,104.6,104.49,17.91604003]
[1646196552938,58.50801568,104.58,104.49,17.91604003]
[1646196553938,58.50801568,104.58,104.49,40.37497821]
[1646196554838,58.50801568,104.58,104.49,17.91604003]
[1646196555241,58.50801568,104.58,104.49,32.26764003]
[1646196558142,162.33,104.57,104.42,68.42970776]
[1646196558346,162.33,104.57,104.1,773.32089782]
[1646196558347,19.8,104.45,104.39,19.84012072]
[1646196558544,167.19587802,104.44,104.26,77.7167]
[1646196558745,236.06587802,104.44,104.26,77.7167]
[1646196558947,85.47342659,104.44,104.26,77.7167]
[1646196559146,81.53225898,104.44,104.26,77.7167]
[1646196559347,144.2,104.43,104.24,95.4]
[1646196559565,68.70445717,104.42,104.27,14.1354]
[1646196559865,51.24542345,104.4,104.27,14.1354]
[1646196560064,15.373,104.39,104.27,14.1354]
[1646196560268,11.54,104.39,104.27,14.1354]
[1646196560465,11.54,104.39,104.27,19.1354]
[1646196561264,54.63245589,104.39,104.29,0.4792195]
[1646196561464,0.15841384,104.38,104.29,0.4792195]
[1646196561665,3.99141384,104.38,104.29,0.4792195]
[1646196562066,15.53141384,104.38,104.29,0.4792195]
[1646196562265,15.373,104.38,104.29,0.4792195]
[1646196563466,11.54,104.38,104.29,0.4792195]
[1646196563666,3.833,104.4,104.29,0.4792195]
[1646196563870,11.54,104.4,104.29,0.4792195]
[1646196564266,11.54,104.4,104.3,5.0]
[1646196564670,56.04395918,104.39,104.3,5.0]
[1646196564868,11.54,104.38,104.3,5.0]
[1646196565069,15.373,104.39,104.3,5.0]
[1646196565367,11.54,104.39,104.3,5.0]
[1646196566868,11.54,104.39,104.29,0.4792195]
[1646196567368,51.42900406,104.38,104.29,0.4792195]
[1646196567569,62.96900406,104.38,104.29,0.4792195]
[1646196569471,11.54,104.38,104.29,0.4792195]
[1646196569974,3.833,104.4,104.29,0.4792195]
[1646196570174,46.289,104.42,104.29,0.4792195]
[1646196570175,3.833,104.41,104.29,0.4792195]
[1646196570373,22.533,104.42,104.3,114.48904003]
[1646196570572,99.05284676,104.43,104.3,114.48904003]
[1646196570772,95.22184676,104.43,104.31,2.54904003]
[1646196571073,8.166,104.43,104.32,11.54]
[1646196571471,8.166,104.43,104.33,2.54904003]
[1646196571672,3.831,104.42,104.33,2.54904003]
[1646196571871,46.94459016,104.42,104.33,2.54904003]
[1646196572072,43.11359016,104.42,104.33,2.54904003]
[1646196573876,3.831,104.41,104.33,2.54904003]
[1646196574075,43.11359016,104.42,104.33,2.54904003]
[1646196574273,43.11359016,104.42,104.33,16.75344003]
[1646196574675,43.11359016,104.42,104.34,2.54904003]
[1646196574873,43.11359016,104.42,104.31,2.54904003]
[1646196575074,62.19344323,104.42,104.31,2.54904003]
[1646196575576,214.92344323,104.42,104.29,3.02825953]
[1646196575774,0.13231389,104.41,104.29,3.02825953]
[1646196575974,58.27605744,104.4,104.29,3.02825953]
[1646196577679,56.65357065,104.4,104.29,3.02825953]
[1646196577879,56.65357065,104.4,104.29,8.02825953]
[1646196579277,56.65357065,104.4,104.29,103.42825953]
[1646196579479,56.65357065,104.4,104.29,98.42825953]
[1646196579679,56.65357065,104.4,104.29,3.02825953]
[1646196579879,45.11357065,104.4,104.29,3.02825953]
[1646196580281,45.11357065,104.4,104.3,95.4]
[1646196580481,45.11357065,104.4,104.29,8.02825953]
[1646196580682,45.11357065,104.4,104.31,2.54904003]
[1646196581681,15.373,104.41,104.31,2.54904003]
[1646196582482,3.833,104.41,104.31,2.54904003]
[1646196582682,58.81072882,104.43,104.31,2.54904003]
[1646196582882,47.27072882,104.43,104.31,2.54904003]
[1646196583482,47.27072882,104.43,104.31,7.54904003]
[1646196583886,47.27072882,104.43,104.32,2.54904003]
[1646196584185,58.81072882,104.43,104.32,2.54904003]
[1646196586788,130.51732882,104.43,104.32,2.54904003]
[1646196587089,132.1419475,104.43,104.32,2.54904003]
[1646196587288,251.91649514,104.43,104.32,2.54904003]
[1646196587487,268.76522139,104.43,104.32,2.54904003]
[1646196588387,268.76522139,104.43,104.31,5.0]
[1646196588589,152.73,104.41,104.29,0.4792195]
[1646196588790,148.31542229,104.39,104.29,0.4792195]
[1646196588991,174.23702229,104.39,104.29,0.4792195]
[1646196589186,231.56702229,104.39,104.29,0.4792195]
[1646196589389,95.4,104.36,104.29,0.4792195]